[Event "Titled Tuesday Blitz June 20 Late 2023"]
[White "Kujawski, Adam"]
[Black "Shuvalov, Evgenij"]
[WhiteFideId "1100920"]
[BlackFideId "4187237"]
[WhiteElo "2054"]
[BlackElo "2080"]
[Result "1-0"]
[Round "9"]
[TimeControl "180+2"]
[Date "2023.06.20"]
[WhiteClock "0:00:41"]
[BlackClock "0:00:40"]
[Board "86"]

1. e4 {[%clk 0:02:53]}  c5 {[%clk 0:02:58]} 2. Nf3 {[%clk 0:02:53]}  Nc6 {[%clk 0:02:56]} 3. Nc3 {[%clk 0:02:53]}  Nf6 {[%clk 0:02:42]} 4. d4 {[%clk 0:02:52]}  cxd4 {[%clk 0:02:39]} 5. Nxd4 {[%clk 0:02:53]}  e5 {[%clk 0:02:35]} 6. Ndb5 {[%clk 0:02:53]}  d6 {[%clk 0:02:35]} 7. Bg5 {[%clk 0:02:53]}  a6 {[%clk 0:02:34]} 8. Na3 {[%clk 0:02:53]}  b5 {[%clk 0:02:32]} 9. Bxf6 {[%clk 0:02:53]}  gxf6 {[%clk 0:02:31]} 10. Nd5 {[%clk 0:02:53]}  Bg7 {[%clk 0:02:25]} 11. c3 {[%clk 0:02:51]}  O-O {[%clk 0:02:24]} 12. Nc2 {[%clk 0:02:50]}  f5 {[%clk 0:02:24]} 13. exf5 {[%clk 0:02:48]}  Bxf5 {[%clk 0:02:25]} 14. Nce3 {[%clk 0:02:48]}  Be6 {[%clk 0:02:24]} 15. Bd3 {[%clk 0:02:48]}  f5 {[%clk 0:02:24]} 16. O-O {[%clk 0:02:43]}  Ra7 {[%clk 0:02:10]} 17. a4 {[%clk 0:02:36]}  bxa4 {[%clk 0:01:58]} 18. Rxa4 {[%clk 0:02:29]}  a5 {[%clk 0:01:55]} 19. f4 {[%clk 0:02:20]}  Qb6 {[%clk 0:01:50]} 20. Nxb6 {[%clk 0:02:10]}  Rb7 {[%clk 0:01:37]} 21. Ned5 {[%clk 0:02:04]}  e4 {[%clk 0:01:24]} 22. Ba6 {[%clk 0:01:50]}  Ra7 {[%clk 0:01:22]} 23. Bb5 {[%clk 0:01:49]}  Nd8 {[%clk 0:01:21]} 24. b4 {[%clk 0:01:45]}  Nf7 {[%clk 0:01:15]} 25. Rxa5 {[%clk 0:01:41]}  Rb7 {[%clk 0:01:15]} 26. Bc6 {[%clk 0:01:27]}  Rbb8 {[%clk 0:01:12]} 27. Ra8 {[%clk 0:01:15]}  Rxa8 {[%clk 0:01:03]} 28. Nxa8 {[%clk 0:01:09]}  Rb8 {[%clk 0:00:59]} 29. b5 {[%clk 0:01:08]}  Nd8 {[%clk 0:00:56]} 30. Nac7 {[%clk 0:01:06]}  Kf7 {[%clk 0:00:50]} 31. Nxe6 {[%clk 0:01:03]}  Nxe6 {[%clk 0:00:50]} 32. b6 {[%clk 0:00:59]}  Nc5 {[%clk 0:00:50]} 33. Qh5+ {[%clk 0:00:50]}  Ke6 {[%clk 0:00:47]} 34. Qxh7 {[%clk 0:00:44]}  Bf8 {[%clk 0:00:40]} 35. Qg6# {[%clk 0:00:41]} 1-0


[Site "https://www.chess.com"]

[Event "Titled Tuesday Blitz June 20 Late 2023"]
[White "Szyszylo, Rafal"]
[Black "Dilmukhametov, Artur"]
[WhiteFideId "1109626"]
[BlackFideId "24179922"]
[WhiteElo "1951"]
[BlackElo "2242"]
[Result "0-1"]
[Round "9"]
[TimeControl "180+2"]
[Date "2023.06.20"]
[WhiteClock "0:00:09"]
[BlackClock "0:00:23"]
[Board "87"]

1. e4 {[%clk 0:03:00]}  e6 {[%clk 0:02:59]} 2. d4 {[%clk 0:02:58]}  d5 {[%clk 0:02:50]} 3. e5 {[%clk 0:02:56]}  c5 {[%clk 0:02:50]} 4. c3 {[%clk 0:02:56]}  Qb6 {[%clk 0:02:51]} 5. Nf3 {[%clk 0:02:55]}  Nc6 {[%clk 0:02:51]} 6. Bd3 {[%clk 0:02:55]}  cxd4 {[%clk 0:02:51]} 7. O-O {[%clk 0:02:55]}  Bd7 {[%clk 0:02:52]} 8. Re1 {[%clk 0:02:49]}  a6 {[%clk 0:02:50]} 9. Nbd2 {[%clk 0:02:47]}  Nge7 {[%clk 0:02:50]} 10. h4 {[%clk 0:02:46]}  Ng6 {[%clk 0:02:26]} 11. h5 {[%clk 0:02:44]}  Nf4 {[%clk 0:02:26]} 12. Bc2 {[%clk 0:02:15]}  Nxh5 {[%clk 0:02:16]} 13. Nxd4 {[%clk 0:02:15]}  Nxd4 {[%clk 0:02:16]} 14. cxd4 {[%clk 0:02:13]}  Nf4 {[%clk 0:02:17]} 15. Nf3 {[%clk 0:02:08]}  Ng6 {[%clk 0:02:16]} 16. Bg5 {[%clk 0:01:00]}  Be7 {[%clk 0:01:56]} 17. Bxg6 {[%clk 0:00:57]}  hxg6 {[%clk 0:01:54]} 18. Bxe7 {[%clk 0:00:56]}  Kxe7 {[%clk 0:01:55]} 19. Qd2 {[%clk 0:00:54]}  f6 {[%clk 0:01:44]} 20. Qf4 {[%clk 0:00:49]}  Rac8 {[%clk 0:01:34]} 21. Re2 {[%clk 0:00:44]}  Bb5 {[%clk 0:01:30]} 22. Re3 {[%clk 0:00:41]}  Rh5 {[%clk 0:00:47]} 23. g4 {[%clk 0:00:38]}  g5 {[%clk 0:00:37]} 24. exf6+ {[%clk 0:00:33]}  gxf6 {[%clk 0:00:38]} 25. Qf5 {[%clk 0:00:31]}  Rh6 {[%clk 0:00:31]} 26. Qxd5 {[%clk 0:00:30]}  Rch8 {[%clk 0:00:29]} 27. Kg2 {[%clk 0:00:30]}  Qc6 {[%clk 0:00:26]} 28. Qb3 {[%clk 0:00:12]}  Rh2+ {[%clk 0:00:25]} 29. Kg1 {[%clk 0:00:11]}  Rh1+ {[%clk 0:00:26]} 30. Kg2 {[%clk 0:00:12]}  Rxa1 {[%clk 0:00:26]} 31. d5 {[%clk 0:00:11]}  Bf1+ {[%clk 0:00:24]} 32. Kg3 {[%clk 0:00:09]}  Rh3# {[%clk 0:00:23]} 0-1


[Site "https://www.chess.com"]

[Event "Titled Tuesday Blitz June 20 Late 2023"]
[White "Rios Escobar, Adan"]
[Black "Rian, Kapriaga"]
[WhiteFideId "3403645"]
[BlackFideId "7103263"]
[WhiteElo "2458"]
[BlackElo "2340"]
[Result "1-0"]
[Round "9"]
[TimeControl "180+2"]
[Date "2023.06.20"]
[WhiteClock "0:00:40"]
[BlackClock "0:00:22"]
[Board "91"]

1. d4 {[%clk 0:03:00]}  Nf6 {[%clk 0:02:58]} 2. g3 {[%clk 0:03:01]}  d5 {[%clk 0:02:54]} 3. Nf3 {[%clk 0:02:59]}  Bf5 {[%clk 0:02:51]} 4. c4 {[%clk 0:03:00]}  e6 {[%clk 0:02:51]} 5. Nc3 {[%clk 0:02:59]}  Be7 {[%clk 0:02:51]} 6. Nh4 {[%clk 0:02:35]}  Bg4 {[%clk 0:02:50]} 7. h3 {[%clk 0:02:35]}  Bh5 {[%clk 0:02:50]} 8. g4 {[%clk 0:02:35]}  Bg6 {[%clk 0:02:51]} 9. Nxg6 {[%clk 0:02:30]}  hxg6 {[%clk 0:02:51]} 10. Bg2 {[%clk 0:02:30]}  c6 {[%clk 0:02:51]} 11. Qb3 {[%clk 0:02:28]}  Qb6 {[%clk 0:02:49]} 12. c5 {[%clk 0:02:28]}  Qxb3 {[%clk 0:02:46]} 13. axb3 {[%clk 0:02:29]}  Nbd7 {[%clk 0:02:42]} 14. b4 {[%clk 0:02:29]}  e5 {[%clk 0:02:35]} 15. e3 {[%clk 0:02:28]}  exd4 {[%clk 0:02:22]} 16. exd4 {[%clk 0:02:29]}  O-O {[%clk 0:02:22]} 17. O-O {[%clk 0:02:26]}  a6 {[%clk 0:02:17]} 18. Re1 {[%clk 0:02:21]}  Rfe8 {[%clk 0:02:16]} 19. g5 {[%clk 0:02:17]}  Nh7 {[%clk 0:02:10]} 20. h4 {[%clk 0:02:09]}  f6 {[%clk 0:01:59]} 21. b5 {[%clk 0:02:00]}  Kf7 {[%clk 0:01:39]} 22. bxc6 {[%clk 0:01:57]}  bxc6 {[%clk 0:01:38]} 23. Nxd5 {[%clk 0:01:56]}  cxd5 {[%clk 0:01:36]} 24. Bxd5+ {[%clk 0:01:57]}  Kf8 {[%clk 0:01:36]} 25. Bxa8 {[%clk 0:01:18]}  Rxa8 {[%clk 0:01:36]} 26. b4 {[%clk 0:01:17]}  fxg5 {[%clk 0:01:24]} 27. b5 {[%clk 0:01:16]}  gxh4 {[%clk 0:01:19]} 28. Rxa6 {[%clk 0:01:14]}  Rb8 {[%clk 0:01:15]} 29. b6 {[%clk 0:01:01]}  Nhf6 {[%clk 0:01:01]} 30. Bf4 {[%clk 0:01:00]}  Rd8 {[%clk 0:00:49]} 31. c6 {[%clk 0:00:53]}  Nd5 {[%clk 0:00:48]} 32. Bc7 {[%clk 0:00:47]}  N7xb6 {[%clk 0:00:35]} 33. Bxb6 {[%clk 0:00:45]}  Nxb6 {[%clk 0:00:33]} 34. Rxb6 {[%clk 0:00:45]}  Rxd4 {[%clk 0:00:33]} 35. Rb8+ {[%clk 0:00:42]}  Kf7 {[%clk 0:00:22]} 36. Rb7 {[%clk 0:00:40]} 1-0


[Site "https://www.chess.com"]

[Event "Titled Tuesday Blitz June 20 Late 2023"]
[White "Castella Garcia, Fausto"]
[Black "Barria Santos, Jose Guilherme"]
[WhiteFideId "3501922"]
[BlackFideId "1939300"]
[WhiteElo "2245"]
[BlackElo "2266"]
[Result "1-0"]
[Round "9"]
[TimeControl "180+2"]
[Date "2023.06.20"]
[WhiteClock "0:00:03"]
[BlackClock "0:00:00"]
[Board "92"]

1. e4 {[%clk 0:02:47]}  e6 {[%clk 0:03:00]} 2. Nf3 {[%clk 0:02:46]}  d5 {[%clk 0:03:01]} 3. e5 {[%clk 0:02:46]}  c5 {[%clk 0:02:59]} 4. b4 {[%clk 0:02:47]}  cxb4 {[%clk 0:02:58]} 5. d4 {[%clk 0:02:47]}  Nc6 {[%clk 0:02:57]} 6. a3 {[%clk 0:02:47]}  bxa3 {[%clk 0:02:57]} 7. c3 {[%clk 0:02:47]}  Bd7 {[%clk 0:02:54]} 8. Bd3 {[%clk 0:02:47]}  Nge7 {[%clk 0:02:53]} 9. h4 {[%clk 0:02:48]}  Nc8 {[%clk 0:02:51]} 10. h5 {[%clk 0:02:48]}  Nb6 {[%clk 0:02:51]} 11. h6 {[%clk 0:02:47]}  g6 {[%clk 0:02:51]} 12. Bg5 {[%clk 0:02:46]}  Be7 {[%clk 0:02:52]} 13. Bxe7 {[%clk 0:02:45]}  Qxe7 {[%clk 0:02:53]} 14. Nxa3 {[%clk 0:02:44]}  a6 {[%clk 0:02:53]} 15. Nc2 {[%clk 0:02:40]}  O-O {[%clk 0:02:49]} 16. Ne3 {[%clk 0:02:39]}  f6 {[%clk 0:02:48]} 17. exf6 {[%clk 0:02:36]}  Rxf6 {[%clk 0:02:49]} 18. Ng4 {[%clk 0:02:36]}  Rf4 {[%clk 0:02:46]} 19. Nge5 {[%clk 0:02:33]}  Nxe5 {[%clk 0:02:46]} 20. Nxe5 {[%clk 0:02:34]}  Raf8 {[%clk 0:02:47]} 21. f3 {[%clk 0:02:32]}  Rh4 {[%clk 0:02:45]} 22. O-O {[%clk 0:02:25]}  Rxh6 {[%clk 0:02:44]} 23. Qe1 {[%clk 0:02:21]}  Bb5 {[%clk 0:02:43]} 24. Bxb5 {[%clk 0:02:19]}  axb5 {[%clk 0:02:44]} 25. Rb1 {[%clk 0:02:15]}  Nc4 {[%clk 0:02:39]} 26. Rxb5 {[%clk 0:02:13]}  Nd6 {[%clk 0:02:39]} 27. Rb6 {[%clk 0:02:10]}  Nf5 {[%clk 0:02:29]} 28. Ng4 {[%clk 0:02:07]}  Rh4 {[%clk 0:02:22]} 29. Rxe6 {[%clk 0:02:06]}  Qg5 {[%clk 0:02:19]} 30. Qe5 {[%clk 0:02:00]}  Qd8 {[%clk 0:01:36]} 31. Nf6+ {[%clk 0:01:53]}  Kf7 {[%clk 0:01:36]} 32. Nxd5 {[%clk 0:01:48]}  Qb8 {[%clk 0:01:21]} 33. Re7+ {[%clk 0:01:41]}  Kg8 {[%clk 0:01:11]} 34. Qf6 {[%clk 0:01:41]}  Rxf6 {[%clk 0:01:10]} 35. Nxf6+ {[%clk 0:01:37]}  Kh8 {[%clk 0:01:10]} 36. Re8+ {[%clk 0:01:35]}  Qxe8 {[%clk 0:01:10]} 37. Nxe8 {[%clk 0:01:36]}  b5 {[%clk 0:00:58]} 38. g4 {[%clk 0:01:35]}  Ne7 {[%clk 0:00:54]} 39. Rb1 {[%clk 0:01:30]}  Nd5 {[%clk 0:00:53]} 40. Rxb5 {[%clk 0:01:30]}  Nxc3 {[%clk 0:00:53]} 41. Rb7 {[%clk 0:01:18]}  Ne2+ {[%clk 0:00:52]} 42. Kg2 {[%clk 0:01:17]}  Nxd4 {[%clk 0:00:53]} 43. Nf6 {[%clk 0:01:03]}  Ne6 {[%clk 0:00:42]} 44. Kg3 {[%clk 0:01:02]}  Rh1 {[%clk 0:00:42]} 45. f4 {[%clk 0:00:53]}  g5 {[%clk 0:00:35]} 46. f5 {[%clk 0:00:43]}  Nf4 {[%clk 0:00:34]} 47. Ne4 {[%clk 0:00:36]}  h6 {[%clk 0:00:17]} 48. f6 {[%clk 0:00:30]}  Ng6 {[%clk 0:00:11]} 49. Nd6 {[%clk 0:00:23]}  Ne5 {[%clk 0:00:03]} 50. Nf5 {[%clk 0:00:16]}  h5 {[%clk 0:00:01]} 51. gxh5 {[%clk 0:00:10]}  Rxh5 {[%clk 0:00:02]} 52. Re7 {[%clk 0:00:06]}  Ng6 {[%clk 0:00:02]} 53. Rg7 {[%clk 0:00:05]}  Ne5 {[%clk 0:00:02]} 54. f7 {[%clk 0:00:03]}  Nxf7 {[%clk 0:00:02]} 55. Rxf7 {[%clk 0:00:04]}  Rh1 {[%clk 0:00:02]} 56. Kg4 {[%clk 0:00:05]}  Rg1+ {[%clk 0:00:03]} 57. Kh5 {[%clk 0:00:05]}  Ra1 {[%clk 0:00:02]} 58. Nh6 {[%clk 0:00:02]}  Ra6 {[%clk 0:00:02]} 59. Rd7 {[%clk 0:00:01]}  Rb6 {[%clk 0:00:01]} 60. Ng4 {[%clk 0:00:02]}  Ra6 {[%clk 0:00:02]} 61. Ne5 {[%clk 0:00:02]}  Kg8 {[%clk 0:00:02]} 62. Ng6 {[%clk 0:00:02]}  g4 {[%clk 0:00:00]} 63. Kh6 {[%clk 0:00:03]} 1-0


[Site "https://www.chess.com"]

[Event "Titled Tuesday Blitz June 20 Late 2023"]
[White "Gerbelli Neto, Eduardo"]
[Black "Yurasova, Daria"]
[WhiteFideId "2103281"]
[BlackFideId "34146919"]
[WhiteElo "2178"]
[BlackElo "2109"]
[Result "1-0"]
[Round "9"]
[TimeControl "180+2"]
[Date "2023.06.20"]
[WhiteClock "0:00:17"]
[BlackClock "0:00:04"]
[Board "94"]

1. e4 {[%clk 0:02:56]}  e5 {[%clk 0:02:56]} 2. Nf3 {[%clk 0:02:53]}  Nc6 {[%clk 0:02:56]} 3. d4 {[%clk 0:02:54]}  exd4 {[%clk 0:02:56]} 4. Bc4 {[%clk 0:02:55]}  Nf6 {[%clk 0:02:56]} 5. O-O {[%clk 0:02:54]}  Nxe4 {[%clk 0:02:56]} 6. Re1 {[%clk 0:02:53]}  d5 {[%clk 0:02:56]} 7. Bxd5 {[%clk 0:02:53]}  Qxd5 {[%clk 0:02:57]} 8. Nc3 {[%clk 0:02:52]}  Qh5 {[%clk 0:02:57]} 9. Nxe4 {[%clk 0:02:48]}  Be7 {[%clk 0:02:57]} 10. Bg5 {[%clk 0:02:35]}  O-O {[%clk 0:02:55]} 11. Bxe7 {[%clk 0:02:34]}  Nxe7 {[%clk 0:02:55]} 12. Qxd4 {[%clk 0:02:23]}  Nc6 {[%clk 0:02:42]} 13. Qc5 {[%clk 0:02:20]}  Qxc5 {[%clk 0:02:37]} 14. Nxc5 {[%clk 0:02:20]}  b6 {[%clk 0:02:38]} 15. Nd3 {[%clk 0:02:19]}  Bf5 {[%clk 0:02:36]} 16. Rad1 {[%clk 0:02:12]}  Rad8 {[%clk 0:02:36]} 17. Nfe5 {[%clk 0:01:58]}  Nxe5 {[%clk 0:02:34]} 18. Nxe5 {[%clk 0:01:51]}  Bxc2 {[%clk 0:02:06]} 19. Rc1 {[%clk 0:01:51]}  Rfe8 {[%clk 0:01:54]} 20. Kf1 {[%clk 0:01:00]}  Ba4 {[%clk 0:01:32]} 21. Rxc7 {[%clk 0:00:51]}  f6 {[%clk 0:01:07]} 22. Nc4 {[%clk 0:00:47]}  Bb5 {[%clk 0:00:33]} 23. b3 {[%clk 0:00:40]}  a5 {[%clk 0:00:32]} 24. Rxe8+ {[%clk 0:00:36]}  Rxe8 {[%clk 0:00:32]} 25. Rb7 {[%clk 0:00:35]}  Re6 {[%clk 0:00:23]} 26. f3 {[%clk 0:00:36]}  Rc6 {[%clk 0:00:21]} 27. Kf2 {[%clk 0:00:32]}  Bxc4 {[%clk 0:00:21]} 28. bxc4 {[%clk 0:00:33]}  Rxc4 {[%clk 0:00:22]} 29. Rxb6 {[%clk 0:00:34]}  Rc2+ {[%clk 0:00:23]} 30. Kg3 {[%clk 0:00:33]}  Rxa2 {[%clk 0:00:24]} 31. Rb7 {[%clk 0:00:34]}  h5 {[%clk 0:00:22]} 32. Ra7 {[%clk 0:00:31]}  Kh7 {[%clk 0:00:22]} 33. h3 {[%clk 0:00:26]}  Kg6 {[%clk 0:00:21]} 34. Ra6 {[%clk 0:00:25]}  a4 {[%clk 0:00:22]} 35. Kh2 {[%clk 0:00:20]}  a3 {[%clk 0:00:22]} 36. Kg3 {[%clk 0:00:21]}  Kf5 {[%clk 0:00:20]} 37. Ra5+ {[%clk 0:00:21]}  Kg6 {[%clk 0:00:20]} 38. Ra4 {[%clk 0:00:21]}  Ra1 {[%clk 0:00:16]} 39. Ra5 {[%clk 0:00:20]}  Kh6 {[%clk 0:00:15]} 40. Ra6 {[%clk 0:00:20]}  Kh7 {[%clk 0:00:12]} 41. Ra7 {[%clk 0:00:20]}  Kg6 {[%clk 0:00:12]} 42. Ra5 {[%clk 0:00:19]}  Kf7 {[%clk 0:00:07]} 43. Rxh5 {[%clk 0:00:18]}  Ke6 {[%clk 0:00:05]} 44. Ra5 {[%clk 0:00:19]}  Kd6 {[%clk 0:00:05]} 45. Kf4 {[%clk 0:00:16]}  Kc6 {[%clk 0:00:06]} 46. g4 {[%clk 0:00:17]}  Kb6 {[%clk 0:00:06]} 47. Ra4 {[%clk 0:00:17]}  Kb5 {[%clk 0:00:06]} 48. Ra7 {[%clk 0:00:17]}  Kb4 {[%clk 0:00:06]} 49. Rxg7 {[%clk 0:00:17]}  Kb3 {[%clk 0:00:06]} 50. h4 {[%clk 0:00:16]}  Ka2 {[%clk 0:00:05]} 51. h5 {[%clk 0:00:16]}  Rh1 {[%clk 0:00:05]} 52. Ra7 {[%clk 0:00:16]}  Kb2 {[%clk 0:00:04]} 53. Kf5 {[%clk 0:00:16]}  Rf1 {[%clk 0:00:03]} 54. f4 {[%clk 0:00:17]}  a2 {[%clk 0:00:04]} 55. h6 {[%clk 0:00:17]}  a1=Q {[%clk 0:00:03]} 56. Rxa1 {[%clk 0:00:17]}  Kxa1 {[%clk 0:00:03]} 57. h7 {[%clk 0:00:16]}  Rh1 {[%clk 0:00:04]} 58. Kg6 {[%clk 0:00:16]}  Kb2 {[%clk 0:00:04]} 59. Kg7 {[%clk 0:00:15]}  Kc3 {[%clk 0:00:05]} 60. h8=Q {[%clk 0:00:16]}  Rxh8 {[%clk 0:00:06]} 61. Kxh8 {[%clk 0:00:16]}  Kc4 {[%clk 0:00:04]} 62. g5 {[%clk 0:00:17]} 1-0


[Site "https://www.chess.com"]

[Event "Titled Tuesday Blitz June 20 Late 2023"]
[White "Vifleemskaia, Svetlana"]
[Black "Ladan, Nicholas"]
[WhiteFideId "4129490"]
[BlackFideId "30918855"]
[WhiteElo "1930"]
[BlackElo "2167"]
[Result "0-1"]
[Round "9"]
[TimeControl "180+2"]
[Date "2023.06.20"]
[WhiteClock "0:00:00"]
[BlackClock "0:00:37"]
[Board "98"]

1. d4 {[%clk 0:02:54]}  b6 {[%clk 0:03:00]} 2. c4 {[%clk 0:02:53]}  Bb7 {[%clk 0:03:01]} 3. Nc3 {[%clk 0:02:52]}  e5 {[%clk 0:03:00]} 4. d5 {[%clk 0:02:52]}  Bb4 {[%clk 0:02:53]} 5. Bd2 {[%clk 0:02:51]}  d6 {[%clk 0:02:52]} 6. a3 {[%clk 0:02:49]}  Bxc3 {[%clk 0:02:52]} 7. Bxc3 {[%clk 0:02:50]}  f5 {[%clk 0:02:52]} 8. e4 {[%clk 0:02:46]}  fxe4 {[%clk 0:02:48]} 9. Qg4 {[%clk 0:02:44]}  Nf6 {[%clk 0:02:33]} 10. Qxg7 {[%clk 0:02:39]}  Rg8 {[%clk 0:02:31]} 11. Qh6 {[%clk 0:02:36]}  Rg6 {[%clk 0:02:22]} 12. Qh3 {[%clk 0:02:17]}  Nbd7 {[%clk 0:02:16]} 13. Qe6+ {[%clk 0:01:53]}  Qe7 {[%clk 0:02:13]} 14. Qxe7+ {[%clk 0:01:53]}  Kxe7 {[%clk 0:02:13]} 15. Ne2 {[%clk 0:01:53]}  Nc5 {[%clk 0:02:01]} 16. Ng3 {[%clk 0:01:52]}  Bc8 {[%clk 0:01:58]} 17. b4 {[%clk 0:01:48]}  Na4 {[%clk 0:01:55]} 18. Bd2 {[%clk 0:01:31]}  h5 {[%clk 0:01:34]} 19. O-O-O {[%clk 0:01:26]}  h4 {[%clk 0:01:25]} 20. Ne2 {[%clk 0:01:21]}  Bg4 {[%clk 0:01:23]} 21. Re1 {[%clk 0:01:15]}  b5 {[%clk 0:01:20]} 22. Nc3 {[%clk 0:00:59]}  Nxc3 {[%clk 0:01:10]} 23. Bxc3 {[%clk 0:00:57]}  Bf5 {[%clk 0:00:58]} 24. f3 {[%clk 0:00:33]}  bxc4 {[%clk 0:00:53]} 25. Bxc4 {[%clk 0:00:32]}  Rxg2 {[%clk 0:00:50]} 26. fxe4 {[%clk 0:00:07]}  Bxe4 {[%clk 0:00:47]} 27. Rhg1 {[%clk 0:00:06]}  Rc2+ {[%clk 0:00:46]} 28. Kd1 {[%clk 0:00:06]}  Rxc3 {[%clk 0:00:45]} 29. Bb5 {[%clk 0:00:03]}  Kf7 {[%clk 0:00:39]} 30. Ref1 {[%clk 0:00:02]}  Rf3 {[%clk 0:00:37]} 31. Rxf3 {[%clk 0:00:01]}  Bxf3+ {[%clk 0:00:38]} 32. Kd2 {[%clk 0:00:00]}  Rg8 {[%clk 0:00:37]} 0-1


[Site "https://www.chess.com"]

[Event "Titled Tuesday Blitz June 20 Late 2023"]
[White "Bogaudinov, Rushan"]
[Black "Rodriguez Santiago, Jaime"]
[WhiteFideId "4129288"]
[BlackFideId "3100898"]
[WhiteElo "1967"]
[BlackElo "2025"]
[Result "1-0"]
[Round "9"]
[TimeControl "180+2"]
[Date "2023.06.20"]
[WhiteClock "0:00:23"]
[BlackClock "0:00:05"]
[Board "99"]

1. g3 {[%clk 0:02:46]}  Nf6 {[%clk 0:02:58]} 2. Bg2 {[%clk 0:02:46]}  d5 {[%clk 0:02:56]} 3. d4 {[%clk 0:02:47]}  e6 {[%clk 0:02:52]} 4. Nf3 {[%clk 0:02:47]}  c5 {[%clk 0:02:52]} 5. O-O {[%clk 0:02:48]}  Nc6 {[%clk 0:02:52]} 6. a3 {[%clk 0:02:48]}  Be7 {[%clk 0:02:50]} 7. dxc5 {[%clk 0:02:48]}  Bxc5 {[%clk 0:02:49]} 8. b4 {[%clk 0:02:49]}  Be7 {[%clk 0:02:48]} 9. Bb2 {[%clk 0:02:49]}  O-O {[%clk 0:02:47]} 10. Nbd2 {[%clk 0:02:48]}  a6 {[%clk 0:02:45]} 11. c4 {[%clk 0:02:48]}  dxc4 {[%clk 0:02:43]} 12. Nxc4 {[%clk 0:02:48]}  b5 {[%clk 0:02:31]} 13. Qxd8 {[%clk 0:02:44]}  Rxd8 {[%clk 0:02:18]} 14. Nfe5 {[%clk 0:02:36]}  Nxe5 {[%clk 0:02:05]} 15. Nxe5 {[%clk 0:02:32]}  Nd5 {[%clk 0:02:02]} 16. Nc6 {[%clk 0:02:28]}  Rd7 {[%clk 0:02:00]} 17. e4 {[%clk 0:02:18]}  Nb6 {[%clk 0:01:54]} 18. Rfd1 {[%clk 0:01:59]}  Bf8 {[%clk 0:01:40]} 19. e5 {[%clk 0:01:38]}  Nd5 {[%clk 0:01:20]} 20. Rac1 {[%clk 0:01:35]}  Bb7 {[%clk 0:01:19]} 21. Na5 {[%clk 0:01:35]}  h6 {[%clk 0:01:16]} 22. h4 {[%clk 0:01:33]}  Rad8 {[%clk 0:01:10]} 23. Nxb7 {[%clk 0:01:32]}  Rxb7 {[%clk 0:01:08]} 24. Rc6 {[%clk 0:01:31]}  Ra7 {[%clk 0:01:03]} 25. Bd4 {[%clk 0:01:24]}  Raa8 {[%clk 0:01:03]} 26. Rdc1 {[%clk 0:01:19]}  a5 {[%clk 0:01:01]} 27. Bc5 {[%clk 0:01:12]}  axb4 {[%clk 0:00:50]} 28. axb4 {[%clk 0:01:12]}  Nxb4 {[%clk 0:00:48]} 29. Bxb4 {[%clk 0:01:12]}  Bxb4 {[%clk 0:00:48]} 30. Rb1 {[%clk 0:01:13]}  Ra4 {[%clk 0:00:44]} 31. Bf1 {[%clk 0:01:11]}  Rd5 {[%clk 0:00:42]} 32. Rc8+ {[%clk 0:01:00]}  Kh7 {[%clk 0:00:40]} 33. Rc7 {[%clk 0:00:59]}  Kg6 {[%clk 0:00:38]} 34. Rb7 {[%clk 0:00:52]}  Rxe5 {[%clk 0:00:34]} 35. Bxb5 {[%clk 0:00:49]}  Ra5 {[%clk 0:00:15]} 36. Rxb4 {[%clk 0:00:48]}  Ra1+ {[%clk 0:00:14]} 37. Kg2 {[%clk 0:00:48]}  Ree1 {[%clk 0:00:15]} 38. Bd3+ {[%clk 0:00:44]}  f5 {[%clk 0:00:15]} 39. Rg4+ {[%clk 0:00:41]}  Kf6 {[%clk 0:00:14]} 40. Rgxg7 {[%clk 0:00:41]}  Rg1+ {[%clk 0:00:14]} 41. Kf3 {[%clk 0:00:41]}  Ra3 {[%clk 0:00:12]} 42. Ke2 {[%clk 0:00:41]}  Rga1 {[%clk 0:00:07]} 43. Rb2 {[%clk 0:00:38]}  Rc1 {[%clk 0:00:05]} 44. Rgb7 {[%clk 0:00:33]}  Rcc3 {[%clk 0:00:05]} 45. Rd2 {[%clk 0:00:33]}  Rc1 {[%clk 0:00:04]} 46. h5 {[%clk 0:00:32]}  Raa1 {[%clk 0:00:05]} 47. Rb6 {[%clk 0:00:31]}  Re1+ {[%clk 0:00:06]} 48. Kf3 {[%clk 0:00:31]}  Kg5 {[%clk 0:00:07]} 49. Re2 {[%clk 0:00:28]}  e5 {[%clk 0:00:06]} 50. Rxe1 {[%clk 0:00:25]}  Rxe1 {[%clk 0:00:06]} 51. Be2 {[%clk 0:00:25]}  e4+ {[%clk 0:00:06]} 52. Ke3 {[%clk 0:00:24]}  Ra1 {[%clk 0:00:05]} 53. Rg6# {[%clk 0:00:23]} 1-0


[Site "https://www.chess.com"]